fUSD/lending_fUSD_20241224
["ID","MTS","AMOUNT","RATE_DAILY","PERIOD"]
[346504338,1735011134532,-500.0,0.00016982,2]
[346504339,1735011134542,-500.0,0.00016982,2]
[346504340,1735011134551,-1162.34,0.00016982,2]
[346504341,1735011134561,-657.02,0.00016982,2]
[346504342,1735011134570,-500.0,0.00016982,2]
[346504343,1735011134581,-500.0,0.00016982,2]
[346504344,1735011134593,-500.0,0.00016982,2]
[346504345,1735011134603,-750.75,0.00016982,2]
[346504346,1735011134613,-843.1,0.00016982,2]
[346504347,1735011134623,-2974.82,0.00016982,2]
[346504348,1735011134632,-1035.17,0.00016982,2]
[346504349,1735011134642,-500.0,0.00016982,2]
[346504350,1735011134653,-1473.91,0.00016982,2]
[346504351,1735011134663,-12237.72,0.00016982,2]
[346504352,1735011134673,-724.91,0.00016982,2]
[346504353,1735011134683,-1085.64,0.00016982,2]
[346504354,1735011134692,-2487.66,0.00016982,2]
[346504355,1735011134701,-855.98,0.00016982,2]
[346504356,1735011134711,-772.32,0.00016982,2]
[346504357,1735011134720,-1607.65,0.00016982,2]
[346504358,1735011134729,-1245.31,0.00016982,2]
[346504359,1735011134739,-2261.57,0.00016982,2]
[346504360,1735011134749,-793.8,0.00016982,2]
[346504361,1735011134758,-500.0,0.00016982,2]
[346504362,1735011134767,-566.83,0.00016982,2]
[346504363,1735011134777,-1841.26,0.00016982,2]
[346504364,1735011134786,-500.0,0.00016982,2]
[346504365,1735011134795,-1675.73,0.00016982,2]
[346504366,1735011134806,-500.0,0.00016982,2]
[346504367,1735011134815,-500.0,0.00016982,2]
[346504368,1735011134824,-1294.02,0.00016982,2]
[346504369,1735011134834,-1457.13,0.00016982,2]
[346504370,1735011134844,-1344.13,0.00016982,2]
[346504371,1735011134854,-1732.9,0.00016982,2]
[346504372,1735011134864,-500.0,0.00016982,2]
[346504373,1735011134873,-913.87,0.00016982,2]
[346504374,1735011134882,-1087.59,0.00016982,2]
[346504375,1735011134892,-561.48848347,0.00016982,2]
[346504376,1735011134901,-1777.07,0.00016982,2]
[346504377,1735011134910,-226.93603685,0.00016982,2]
[346504378,1735011134920,-1013.56,0.00016982,2]
[346504379,1735011134929,-1109.62,0.00016982,2]
[346504380,1735011134939,-3611.54,0.00016982,2]
[346504381,1735011134948,-500.0,0.00016982,2]
[346504382,1735011134958,-700.34,0.00016982,2]
[346504383,1735011134967,-1340.51,0.00016982,2]
[346504384,1735011134976,-1798.91,0.00016982,2]
[346504385,1735011134985,-541.15,0.00016982,2]
[346504386,1735011134995,-1108.03,0.00016982,2]
[346504387,1735011135005,-6420.88,0.00016982,2]
[346504388,1735011135014,-1834.74,0.00016982,2]
[346504389,1735011135023,-1753.2,0.00016982,2]
[346504390,1735011135033,-3473.97,0.00016982,2]
[346504391,1735011135042,-500.0,0.00016982,2]
[346504392,1735011135051,-1098.98,0.00016982,2]
[346504393,1735011135060,-500.0,0.00016983,2]
[346504394,1735011135070,-500.0,0.00016983,2]
[346504395,1735011135080,-500.0,0.00016983,2]
[346504396,1735011135092,-500.0,0.00016983,2]
[346504397,1735011135101,-469.64299775,0.00016983,2]
[346504398,1735011135111,-500.0,0.00016983,2]
[346504399,1735011135121,-500.0,0.00016983,2]
[346504400,1735011135131,-500.0,0.00016983,2]
[346504401,1735011135141,-518.65993684,0.00016983,2]
[346504402,1735011135150,-200.0,0.00016983,2]
[346504403,1735011135159,-500.0,0.00016983,2]
[346504404,1735011135169,-500.0,0.00016983,2]
[346504405,1735011135178,-256.53125024,0.00016983,2]
[346504406,1735011135187,-500.0,0.00016983,2]
[346504407,1735011135197,-500.0,0.00016983,2]
[346504408,1735011135206,-500.0,0.00016983,2]
[346504409,1735011135215,-500.0,0.00016983,2]
[346504410,1735011135225,-500.0,0.00016983,2]
[346504411,1735011135235,-500.0,0.00016983,2]
[346504412,1735011135244,-500.0,0.00016983,2]
[346504413,1735011135253,-500.0,0.00016983,2]
[346504414,1735011135263,-500.0,0.00016983,2]
[346504415,1735011135273,-500.0,0.00016983,2]
[346504416,1735011135282,-500.0,0.00016983,2]
[346504417,1735011135292,-500.0,0.00016983,2]
[346504418,1735011135301,-500.0,0.00016983,2]
[346504419,1735011135310,-217.85529363,0.00016983,2]
[346504420,1735011135320,-500.0,0.00016983,2]
[346504421,1735011135330,-500.0,0.00016983,2]
[346504422,1735011135340,-505.14,0.00016983,2]
[346504423,1735011135349,-500.0,0.00016983,2]
[346504424,1735011135359,-500.0,0.00016983,2]
[346504425,1735011135368,-500.0,0.00016983,2]
[346504426,1735011135378,-500.0,0.00016983,2]
[346504427,1735011135388,-500.0,0.00016983,2]
[346504428,1735011135397,-500.0,0.00016983,2]
[346504429,1735011135406,-352.35955566,0.00016983,2]
[346504430,1735011135416,-500.0,0.00016983,2]
[346504431,1735011135426,-500.0,0.00016983,2]
[346504432,1735011135435,-500.0,0.00016983,2]
[346504433,1735011135445,-500.0,0.00016983,2]
[346504434,1735011135455,-368.21840126,0.00016983,2]
[346504435,1735011135464,-500.0,0.00016983,2]
[346504436,1735011135474,-469.1,0.00016983,2]
[346504437,1735011135483,-2197.64,0.00016983,2]
[346504438,1735011135493,-500.0,0.00016983,2]
[346504439,1735011135503,-500.0,0.00016983,2]
[346504440,1735011135512,-924.29,0.00016983,2]
[346504441,1735011135522,-3800.89,0.00016983,2]
[346504442,1735011135533,-4111.27,0.00016983,2]
[346504443,1735011135543,-3362.87,0.00016983,2]
[346504444,1735011135553,-500.0,0.00016983,2]
[346504445,1735011135563,-500.0,0.00016983,2]
[346504446,1735011135573,-500.0,0.00016983,2]
[346504447,1735011135586,-500.0,0.00016983,2]
[346504448,1735011135599,-944.42,0.00016983,2]
[346504449,1735011135609,-578.45,0.00016983,2]
[346504450,1735011135619,-1032.77,0.00016983,2]
[346504451,1735011135631,-3197.19,0.00016983,2]
[346504452,1735011135640,-893.07,0.00016983,2]
[346504453,1735011135650,-831.96,0.00016983,2]
[346504454,1735011135659,-1264.9,0.00016983,2]
[346504455,1735011135670,-3791.3,0.00016983,2]
[346504456,1735011135681,-500.0,0.00016983,2]
[346504457,1735011135691,-1468.04,0.00016983,2]
[346504458,1735011135701,-618.66,0.00016983,2]
[346504459,1735011135711,-500.0,0.00016983,2]
[346504460,1735011135720,-880.68,0.00016983,2]
[346504461,1735011135730,-4498.81,0.00016983,2]
[346504462,1735011135740,-980.14,0.00016983,2]
[346504463,1735011135750,-500.0,0.00016983,2]
[346504464,1735011135760,-845.95,0.00016983,2]
[346504465,1735011135770,-768.63,0.00016983,2]
[346504466,1735011135780,-1633.61,0.00016983,2]
[346504467,1735011135790,-10724.41,0.00016983,2]
[346504468,1735011135799,-500.0,0.00016983,2]
[346504469,1735011135809,-1907.04,0.00016983,2]
[346504470,1735011135819,-3409.97,0.00016983,2]
[346504471,1735011135831,-500.0,0.00016983,2]
[346504472,1735011135841,-500.0,0.00016983,2]
[346504473,1735011135850,-3144.7,0.00016983,2]
[346504474,1735011135860,-606.0,0.00016983,2]
[346504475,1735011135870,-7767.4,0.00016983,2]
[346504476,1735011135879,-3102.39,0.00016983,2]
[346504477,1735011135890,-2500.86,0.00016983,2]
[346504478,1735011135900,-16025.73,0.00016983,2]
[346504479,1735011135910,-500.0,0.00016983,2]
[346504480,1735011135921,-6082.71,0.00016983,2]
[346504481,1735011135930,-621.95,0.00016983,2]
[346504482,1735011135940,-2316.02,0.00016983,2]
[346504483,1735011135950,-1193.06,0.00016983,2]
[346504484,1735011135960,-599.65,0.00016983,2]
[346504485,1735011135970,-500.0,0.00016983,2]
[346504486,1735011135979,-500.0,0.00016984,2]
[346504487,1735011135989,-500.0,0.00016984,2]
[346504488,1735011135999,-500.0,0.00016984,2]
[346504489,1735011136008,-500.0,0.00016984,2]
[346504490,1735011136018,-500.0,0.00016984,2]
[346504491,1735011136028,-500.0,0.00016984,2]
[346504492,1735011136037,-500.0,0.00016984,2]
[346504493,1735011136047,-511.03,0.00016984,2]
[346504494,1735011136057,-500.0,0.00016984,2]
[346504495,1735011136066,-500.0,0.00016984,2]
[346504496,1735011136076,-500.0,0.00016984,2]
[346504497,1735011136087,-500.0,0.00016984,2]
[346504498,1735011136096,-500.0,0.00016984,2]
[346504499,1735011136106,-500.0,0.00016984,2]
[346504500,1735011136115,-500.0,0.00016984,2]
[346504501,1735011136125,-500.0,0.00016984,2]
[346504502,1735011136135,-500.0,0.00016984,2]
[346504503,1735011136144,-500.0,0.00016984,2]
[346504504,1735011136154,-500.0,0.00016984,2]
[346504505,1735011136163,-500.0,0.00016984,2]
[346504506,1735011136172,-500.0,0.00016984,2]
[346504507,1735011136182,-500.0,0.00016984,2]
[346504508,1735011136192,-500.0,0.00016984,2]
[346504509,1735011136202,-500.0,0.00016984,2]
[346504510,1735011136212,-500.0,0.00016984,2]
[346504511,1735011136222,-500.0,0.00016984,2]
[346504512,1735011136232,-511.22,0.00016984,2]
[346504513,1735011136242,-500.0,0.00016984,2]
[346504514,1735011136251,-500.0,0.00016984,2]
[346504515,1735011136261,-963.35,0.00016984,2]
[346504516,1735011136271,-500.0,0.00016984,2]
[346504517,1735011136280,-817.97,0.00016984,2]
[346504518,1735011136290,-1137.67,0.00016984,2]
[346504519,1735011136300,-916.16,0.00016984,2]
[346504520,1735011136310,-876.13,0.00016984,2]
[346504521,1735011136319,-500.0,0.00016984,2]
[346504522,1735011136329,-850.87,0.00016984,2]
[346504523,1735011136340,-809.33,0.00016984,2]
[346504524,1735011136350,-576.68,0.00016984,2]
[346504525,1735011136360,-680.75,0.00016984,2]
[346504526,1735011136370,-1535.16,0.00016984,2]
[346504527,1735011136379,-500.0,0.00016984,2]
[346504528,1735011136390,-835.68,0.00016984,2]
[346504529,1735011136400,-500.0,0.00016984,2]
[346504530,1735011136410,-11706.4,0.00016984,2]
[346504531,1735011136419,-659.12,0.00016984,2]
[346504532,1735011136429,-500.0,0.00016984,2]
[346504533,1735011136440,-653.62,0.00016984,2]
[346504534,1735011136451,-534.76,0.00016984,2]
[346504535,1735011136461,-1707.85,0.00016984,2]
[346504536,1735011136471,-500.0,0.00016984,2]
[346504537,1735011136481,-1321.6,0.00016984,2]
[346504538,1735011136490,-980.51,0.00016984,2]
[346504539,1735011136500,-1216.74,0.00016984,2]
[346504540,1735011136510,-941.42,0.00016984,2]
[346504541,1735011136520,-2484.72,0.00016984,2]
[346504542,1735011136531,-824.25,0.00016984,2]
[346504543,1735011136541,-766.19,0.00016984,2]
[346504544,1735011136550,-500.0,0.00016984,2]
[346504545,1735011136560,-500.0,0.00016984,2]
[346504546,1735011136571,-1000.0,0.00016984,2]
[346504547,1735011136583,-500.0,0.00016984,2]
[346504548,1735011136599,-1396.04,0.00016984,2]
[346504549,1735011136609,-500.0,0.00016984,2]
[346504550,1735011136619,-635.05,0.00016984,2]
[346504551,1735011136630,-789.1,0.00016984,2]
[346504552,1735011136640,-500.0,0.00016984,2]
[346504553,1735011136649,-2682.71,0.00016984,2]
[346504554,1735011136659,-500.0,0.00016984,2]
[346504555,1735011136669,-940.58,0.00016984,2]
[346504556,1735011136679,-669.82,0.00016984,2]
[346504557,1735011136689,-1941.26,0.00016984,2]
[346504558,1735011136699,-575.68,0.00016984,2]
[346504559,1735011136709,-1285.44,0.00016984,2]
[346504560,1735011136719,-734.43,0.00016984,2]
[346504561,1735011136729,-500.0,0.00016984,2]
[346504562,1735011136739,-1247.11,0.00016984,2]
[346504563,1735011136748,-500.0,0.00016984,2]
[346504564,1735011136758,-1338.65,0.00016984,2]
[346504565,1735011137068,-1230.35,0.00016984,2]
[346504566,1735011137079,-543.55,0.00016984,2]
[346504567,1735011137091,-500.0,0.00016984,2]
[346504568,1735011137102,-649.45,0.00016984,2]
[346504569,1735011137112,-500.0,0.00016984,2]
[346504570,1735011137121,-500.0,0.00016985,2]
[346504571,1735011137131,-500.0,0.00016985,2]
[346504572,1735011137140,-500.0,0.00016985,2]
[346504573,1735011137149,-500.0,0.00016985,2]
[346504574,1735011137159,-500.0,0.00016985,2]
[346504575,1735011137169,-500.0,0.00016985,2]
[346504576,1735011137178,-500.0,0.00016985,2]
[346504577,1735011137188,-500.0,0.00016985,2]
[346504578,1735011137197,-500.0,0.00016985,2]
[346504579,1735011137207,-500.0,0.00016985,2]
[346504580,1735011137216,-500.0,0.00016985,2]
[346504581,1735011137225,-500.0,0.00016985,2]
[346504582,1735011137235,-500.0,0.00016985,2]
[346504583,1735011137244,-500.0,0.00016985,2]
[346504584,1735011137253,-500.0,0.00016985,2]
[346504585,1735011137263,-500.0,0.00016985,2]
[346504586,1735011137272,-500.0,0.00016985,2]
[346504587,1735011137281,-500.0,0.00016985,2]
[346504588,1735011137291,-500.0,0.00016985,2]
[346504589,1735011137300,-500.0,0.00016985,2]
[346504590,1735011137310,-500.0,0.00016985,2]
[346504591,1735011137320,-509.34,0.00016985,2]
[346504592,1735011137329,-424.38529894,0.00016985,2]
[346504593,1735011137341,-500.0,0.00016985,2]
[346504594,1735011137350,-500.0,0.00016985,2]
[346504595,1735011137360,-500.0,0.00016985,2]
[346504596,1735011137369,-500.0,0.00016985,2]
[346504597,1735011137379,-594.29,0.00016985,2]
[346504598,1735011137389,-500.0,0.00016985,2]
[346504599,1735011137398,-670.25,0.00016985,2]
[346504600,1735011137408,-553.58,0.00016985,2]
[346504601,1735011137417,-1203.72,0.00016985,2]
[346504602,1735011137426,-500.0,0.00016985,2]
[346504603,1735011137436,-500.0,0.00016985,2]
[346504604,1735011137445,-500.0,0.00016985,2]
[346504605,1735011137454,-182.55,0.00016985,2]
[346504606,1735011137463,-627.9,0.00016985,2]
[346504607,1735011137473,-500.0,0.00016985,2]
[346504608,1735011137483,-500.0,0.00016985,2]
[346504609,1735011137492,-500.0,0.00016985,2]
[346504610,1735011137502,-1878.0,0.00016986,2]
[346504611,1735011137511,-1075.0,0.00016986,2]
[346504612,1735011137521,-2048.58,0.00016986,2]
[346504613,1735011137531,-1779.8,0.00016986,2]
[346504614,1735011137541,-1311.88,0.00016986,2]
[346504615,1735011137550,-3042.34,0.00016986,2]
[346504616,1735011137560,-4145.26,0.00016986,2]
[346504617,1735011137569,-2510.92,0.00016986,2]
[346504618,1735011137579,-2165.74,0.00016986,2]
[346504619,1735011137593,-4218.72,0.00016986,2]
[346504620,1735011137602,-2191.99,0.00016986,2]
[346504621,1735011137611,-2002.38,0.00016986,2]
[346504622,1735011137621,-683.71,0.00016986,2]
[346504623,1735011137630,-500.0,0.00016986,2]
[346504624,1735011137639,-500.0,0.00016986,2]
[346504625,1735011137648,-18977.0,0.00016986,2]
[346504626,1735011137658,-760.03,0.00016986,2]
[346504627,1735011137668,-1641.11,0.00016986,2]
[346504628,1735011137678,-500.0,0.00016986,2]
[346504629,1735011137688,-437.17,0.00016986,2]
[346504630,1735011137697,-436.69,0.00016986,2]
[346504631,1735011137707,-150.0,0.00016991,2]
[346504632,1735011137716,-159.83808208,0.00016996,2]
[346504633,1735011137726,-500.0,0.00016996,2]
[346504634,1735011137735,-500.0,0.00016996,2]
[346504635,1735011137744,-206.39518649,0.00016996,2]
[346504636,1735011137754,-187.02317245,0.00016996,2]
[346504637,1735011137763,-504.98214803,0.00016996,2]
[346504638,1735011137774,-150.0,0.00016997,2]
[346504639,1735011137784,-150.0,0.00016997,2]
[346504640,1735011137794,-1000.0,0.00017,2]
[346504641,1735011137803,-21788.0,0.00017,2]
[346504642,1735011137812,-550.0,0.00017,2]
[346504643,1735011137822,-500.0,0.00017005,2]
[346504644,1735011137834,-500.20957409,0.00017005,2]
[346504645,1735011137843,-382.01695203,0.00017005,2]
[346504646,1735011137852,-500.0,0.00017005,2]
[346504647,1735011137861,-323.08254876,0.00017005,2]
[346504648,1735011137871,-150.0,0.00017023,2]
[346504649,1735011137881,-150.0,0.00017029,2]
[346504650,1735011137891,-12682.02927157,0.00017036,2]
[346504651,1735011137900,-553.36804499,0.00017038,2]
[346504652,1735011137909,-150.0,0.00017049,2]
[346504653,1735011137919,-150.0,0.00017062,2]
[346504654,1735011137928,-150.0,0.00017067,2]
[346504655,1735011137937,-150.0,0.00017075,2]
[346504656,1735011137947,-5561.0,0.000171,5]
[346504657,1735011137956,-150.0,0.000171,2]
[346504658,1735011137965,-150.0,0.00017105,2]
[346504659,1735011137975,-1461.449,0.00017106,2]
[346504660,1735011137984,-3203.749,0.00017106,2]
[346504661,1735011137993,-3886.0,0.00017106,2]
[346504662,1735011138003,-150.0,0.00017106,2]
[346504663,1735011138013,-1265.0,0.00017106,2]
[346504664,1735011138022,-2011.0,0.00017106,2]
[346504665,1735011138031,-500.0,0.0001712,2]
[346504666,1735011138041,-250.0,0.00017123,2]
[346504667,1735011138050,-150.0,0.00017126,2]
[346504668,1735011138059,-150.0,0.00017126,2]
[346504669,1735011138068,-150.0,0.00017126,2]
[346504670,1735011138079,-1500.0,0.00017131,2]
[346504671,1735011138089,-150.0,0.00017143,2]
[346504672,1735011138099,-150.0,0.00017152,2]
[346504673,1735011138109,-1082.31050602,0.00017153,2]
[346504674,1735011138118,-152.0,0.00017154,3]
[346504675,1735011138128,-150.0,0.00017178,2]
[346504676,1735011138138,-150.0,0.0001718,2]
[346504677,1735011138148,-250.0,0.0001719,2]
[346504678,1735011138158,-150.0,0.00017191,2]
[346504679,1735011138168,-150.0,0.00017204,2]
[346504680,1735011138178,-150.0,0.00017218,2]
[346504681,1735011138188,-150.0,0.0001723,2]
[346504682,1735011138198,-1852.82,0.00017254,2]
[346504683,1735011138207,-500.0,0.00017254,2]
[346504684,1735011138218,-2606.93,0.00017254,2]
[346504685,1735011138228,-2999.55,0.00017254,2]
[346504686,1735011138237,-1157.43,0.00017254,2]
[346504687,1735011138247,-606.11,0.00017254,2]
[346504688,1735011138256,-6426.45,0.00017254,2]
[346504689,1735011138266,-1172.56,0.00017254,2]
[346504690,1735011138276,-4243.49,0.00017254,2]
[346504691,1735011138288,-1763.65,0.00017254,2]
[346504692,1735011138298,-1114.010296,0.00017254,2]
[346504693,1735011138308,-1609.76,0.00017254,2]
[346504694,1735011138319,-1255.913597,0.00017254,2]
[346504695,1735011138329,-3445.2,0.00017254,2]
[346504696,1735011138343,-2865.43,0.00017254,2]
[346504697,1735011138352,-9494.21,0.00017254,2]
[346504698,1735011138361,-875.1,0.00017254,2]
[346504699,1735011138371,-9217.19,0.00017254,2]
[346504700,1735011138381,-2293.91,0.00017254,2]
[346504701,1735011138392,-1133.56,0.00017254,2]
[346504702,1735011138402,-500.0,0.00017254,2]
[346504703,1735011138412,-1695.02,0.00017254,2]
[346504704,1735011138422,-1707.6,0.00017254,2]
[346504705,1735011138431,-2242.13,0.00017254,2]
[346504706,1735011138441,-2349.54,0.00017254,2]
[346504707,1735011138451,-1817.06,0.00017254,2]
[346504708,1735011138461,-3224.69,0.00017254,2]
[346504709,1735011138470,-1391.02,0.00017254,2]
[346504710,1735011138480,-2776.88,0.00017254,2]
[346504711,1735011138489,-3101.23,0.00017254,2]
[346504712,1735011138499,-4039.9,0.00017254,2]
[346504713,1735011138509,-2093.55,0.00017254,2]
[346504714,1735011138519,-7546.19,0.00017254,2]
[346504715,1735011138529,-500.0,0.00017254,2]
[346504716,1735011138539,-6150.66,0.00017254,2]
[346504717,1735011138549,-824.32,0.00017254,2]
[346504718,1735011138559,-1376.04,0.00017256,2]
[346504719,1735011138568,-500.0,0.00017256,2]
[346504720,1735011138579,-500.0,0.00017256,2]
[346504721,1735011138593,-603.13,0.00017256,2]
[346504722,1735011138603,-500.0,0.00017256,2]
[346504723,1735011138613,-714.04,0.00017256,2]
[346504724,1735011138623,-518.45,0.00017256,2]
[346504725,1735011138633,-623.37,0.00017256,2]
[346504726,1735011138643,-500.0,0.00017256,2]
[346504727,1735011138652,-638.22,0.00017256,2]
[346504728,1735011138662,-500.0,0.00017256,2]
[346504729,1735011138673,-500.0,0.00017256,2]
[346504730,1735011138682,-803.42,0.00017256,2]
[346504731,1735011138692,-500.0,0.00017256,2]
[346504732,1735011138702,-330.2912397,0.00017256,2]
[346504733,1735011138711,-833.06,0.00017256,2]
[346504734,1735011138721,-792.49,0.00017256,2]
[346504735,1735011138730,-500.0,0.00017256,2]
[346504736,1735011138739,-764.06,0.00017256,2]
[346504737,1735011138748,-500.0,0.00017256,2]
[346504738,1735011138757,-500.0,0.00017256,2]
[346504739,1735011138767,-500.0,0.00017256,2]
[346504740,1735011138776,-925.7,0.00017256,2]
[346504741,1735011138785,-500.0,0.00017256,2]
[346504742,1735011138795,-500.0,0.00017256,2]
[346504743,1735011138805,-633.33,0.00017256,2]
[346504744,1735011138814,-500.0,0.00017256,2]
[346504745,1735011138823,-500.0,0.00017256,2]
[346504746,1735011138833,-559.32,0.00017256,2]
[346504747,1735011138842,-500.0,0.00017256,2]
[346504748,1735011138852,-500.0,0.00017256,2]
[346504749,1735011138862,-500.0,0.00017256,2]
[346504750,1735011138871,-756.47,0.00017256,2]
[346504751,1735011138880,-500.0,0.00017256,2]
[346504752,1735011138890,-500.0,0.00017256,2]
[346504753,1735011138899,-500.0,0.00017256,2]
[346504754,1735011138909,-652.18,0.00017256,2]
[346504755,1735011138918,-500.0,0.00017256,2]
[346504756,1735011138928,-500.0,0.00017256,2]
[346504757,1735011138937,-1162.34,0.00017256,2]
[346504758,1735011138946,-657.02,0.00017256,2]
[346504759,1735011138955,-500.0,0.00017256,2]
[346504760,1735011138965,-500.0,0.00017256,2]
[346504761,1735011138974,-500.0,0.00017256,2]
[346504762,1735011138983,-750.75,0.00017256,2]
[346504763,1735011138992,-843.1,0.00017256,2]
[346504764,1735011139001,-2974.82,0.00017256,2]
[346504765,1735011139010,-1035.17,0.00017256,2]
[346504766,1735011139020,-500.0,0.00017256,2]
[346504767,1735011139029,-1473.91,0.00017256,2]
[346504768,1735011139039,-12237.72,0.00017256,2]
[346504769,1735011139047,-724.91,0.00017256,2]
[346504770,1735011139057,-1085.64,0.00017256,2]
[346504771,1735011139066,-2487.66,0.00017256,2]
[346504772,1735011139075,-855.98,0.00017256,2]
[346504773,1735011139085,-772.32,0.00017256,2]
[346504774,1735011139095,-1607.65,0.00017256,2]
[346504775,1735011139104,-1245.31,0.00017256,2]
[346504776,1735011139114,-2261.57,0.00017256,2]
[346504777,1735011139123,-793.8,0.00017256,2]
[346504778,1735011139132,-500.0,0.00017256,2]
[346504779,1735011139141,-566.83,0.00017256,2]
[346504780,1735011139150,-1841.26,0.00017256,2]
[346504781,1735011139159,-500.0,0.00017256,2]
[346504782,1735011139168,-1675.73,0.00017256,2]
[346504783,1735011139177,-500.0,0.00017256,2]
[346504784,1735011139187,-500.0,0.00017256,2]
[346504785,1735011139196,-1294.02,0.00017256,2]
[346504786,1735011139206,-1457.13,0.00017256,2]
[346504787,1735011139216,-1344.13,0.00017256,2]
[346504788,1735011139226,-1732.9,0.00017256,2]
[346504789,1735011139235,-500.0,0.00017256,2]
[346504790,1735011139245,-913.87,0.00017256,2]
[346504791,1735011139255,-1087.59,0.00017256,2]
[346504792,1735011139265,-1777.07,0.00017256,2]
[346504793,1735011139275,-1013.56,0.00017256,2]
[346504794,1735011139285,-1109.62,0.00017256,2]
[346504795,1735011139295,-3611.54,0.00017256,2]
[346504796,1735011139304,-500.0,0.00017256,2]
[346504797,1735011139314,-700.34,0.00017256,2]
[346504798,1735011139324,-1340.51,0.00017256,2]
[346504799,1735011139334,-1798.91,0.00017256,2]
[346504800,1735011139344,-1108.03,0.00017256,2]
[346504801,1735011139355,-6420.88,0.00017256,2]
[346504802,1735011139453,-1834.74,0.00017256,2]
[346504803,1735011139463,-1753.2,0.00017256,2]
[346504804,1735011139474,-3473.97,0.00017256,2]
[346504805,1735011139484,-500.0,0.00017256,2]
[346504806,1735011139493,-1098.98,0.00017256,2]
[346504807,1735011139503,-150.0,0.00017256,2]
[346504808,1735011139512,-150.0,0.00017256,2]
[346504809,1735011139522,-150.0,0.00017256,2]
[346504810,1735011139532,-150.0,0.00017256,2]
[346504811,1735011139541,-150.0,0.00017256,2]
[346504812,1735011139551,-500.0,0.00017257,2]
[346504813,1735011139560,-500.0,0.00017257,2]
[346504814,1735011139569,-500.0,0.00017257,2]
[346504815,1735011139578,-500.0,0.00017257,2]
[346504816,1735011139588,-500.0,0.00017257,2]
[346504817,1735011139600,-500.0,0.00017257,2]
[346504818,1735011139609,-500.0,0.00017257,2]
[346504819,1735011139618,-200.0,0.00017257,2]
[346504820,1735011139629,-500.0,0.00017257,2]
[346504821,1735011139638,-500.0,0.00017257,2]
[346504822,1735011139647,-500.0,0.00017257,2]
[346504823,1735011139656,-500.0,0.00017257,2]
[346504824,1735011139665,-500.0,0.00017257,2]
[346504825,1735011139674,-299.19149676,0.00017257,2]
[346504826,1735011139684,-500.0,0.00017257,2]
[346504827,1735011139693,-500.0,0.00017257,2]
[346504828,1735011139702,-500.0,0.00017257,2]
[346504829,1735011139712,-500.0,0.00017257,2]
[346504830,1735011139722,-500.0,0.00017257,2]
[346504831,1735011139731,-500.0,0.00017257,2]
[346504832,1735011139741,-500.0,0.00017257,2]
[346504833,1735011139749,-368.15530403,0.00017257,2]
[346504834,1735011139759,-500.0,0.00017257,2]
[346504835,1735011139768,-500.0,0.00017257,2]
[346504836,1735011139777,-500.0,0.00017257,2]
[346504837,1735011139786,-505.14,0.00017257,2]